Cogmind - Beta 17.1 @@@ ROGUE MODE // 2026.09.07 @ 10:07:22 Player: Somberlain Result: Destroyed by X-57 Shotgunner with High-powered Shotgun Performance ------------- Evolutions (3) 1500 Regions Visited (11) 2200 Robots Destroyed (68) 340 Value Destroyed (3044) 3044 Prototype IDs (29) 580 Alien Tech Used (0) 0 Bonus (3146) 3146 TOTAL SCORE: 10810 Bonus ------- High Alert Combat Kills 747 Follower Combat Kills 736 Entered Garrisons 600 Used RIF Installer 1000 Entered DSFs 500 Aligned with FarCom 300 Friendly Fire -737 Cogmind --------- Core Integrity 0/700 Matter 106/300 Energy 96/100 System Corruption 1% Temperature Cool (0) Movement Core (50) Location -7/Garrison Parts ------- > --- POWER (1) -------- (None) > --- PROPULSION (4) --- (None) > --- UTILITY (6) ------ (None) > --- WEAPON (2) ------- Chainsword > --- INVENTORY (5) ---- Improved Trap Scanner Improved Sensor Array Relay Coupler [Hunter] (18) Advanced Remote Datajack Peak State ------------ > --- POWER ------------ Light Angular Momentum Engine > --- PROPULSION ------- Flying Fortress v7 > --- UTILITY ---------- Large Storage Unit Improved Trap Scanner Force Field System Shield > --- WEAPON ----------- Cooled Particle Cannon Advanced Remote Datajack > --- INVENTORY -------- Titanium Leg Coolant Injector Melee Analysis Suite Advanced Melee Analysis Suite Improved Actuator Array Force Booster Force Booster Phase Shifter Relay Coupler [Sentry] Relay Coupler [Demolisher] Relay Coupler [Hunter] Relay Coupler [Heavy] Cooled Particle Cannon Missile Launcher Improved Datajack [Rating: 70] Favorites ----------- Power Light Nuclear Core Engine Light Angular Momentum Engine Power Core Light Nuclear Core Propulsion Carbon-fiber Leg Leg Carbon-fiber Leg Hover Unit Hover Unit Flight Unit Flying Fortress v7 Utility Large Storage Unit Device Trap Scanner Storage Large Storage Unit Processor Melee Analysis Suite Hackware System Shield Protection Insulated Plating Weapon Cooled Particle Cannon Energy Gun Beam Rifle Energy Cannon Cooled Particle Cannon Ballistic Gun Assault Rifle Ballistic Cannon Light Cannon Launcher Missile Launcher Special Weapon Advanced Remote Datajack Slashing Weapon Chainsword Special Melee Weapon Improved Datajack Build | -11 -10 -10 -10 -9 -8 -8 -8 -8 -7 -7 -7 ------- Run | Yrd Mat Min Exi Min Mat Gar Mat Gar Fac DSF Gar Slots Evolved 6 | . . . . . 4 . . . 2 . . Power . | . . . . . . . . . . . . Propulsion 2 | . . . . . 2 . . . . . . Utility 4 | . . . . . 2 . . . 2 . . Weapon . | . . . . . . . . . . . . Parts Attached 67 | 6 3 2 1 . 13 14 10 10 4 4 . Power 8 | 1 . . . . 1 4 . 2 . . . Engine 4 | 1 . . . . . 2 . 1 . . . Core 4 | . . . . . 1 2 . 1 . . . Reactor . | . . . . . . . . . . . . Propulsion 15 | 2 . 2 . . 1 . 8 2 . . . Treads . | . . . . . . . . . . . . Leg 12 | 2 . . . . . . 8 2 . . . Wheel . | . . . . . . . . . . . . Hover 1 | . . 1 . . . . . . . . . Flight 2 | . . 1 . . 1 . . . . . . Utility 25 | 1 2 . 1 . 4 6 2 3 4 2 . Device 9 | . . . . . 1 4 1 1 1 1 . Storage 3 | 1 1 . 1 . . . . . . . . Processor 2 | . . . . . . 1 . 1 . . . Hackware 8 | . . . . . 1 1 1 1 3 1 . Protection 3 | . 1 . . . 2 . . . . . . Artifact . | . . . . . . . . . . . . Weapon 19 | 2 1 . . . 7 4 . 3 . 2 . Energy Gun 1 | . . . . . 1 . . . . . . Energy Cannon 4 | . . . . . 2 2 . . . . . Ballistic Gun 6 | 2 . . . . 1 . . 1 . 2 . Ballistic Cannon 2 | . . . . . 2 . . . . . . Launcher 1 | . . . . . 1 . . . . . . Special Weapon 2 | . 1 . . . . 1 . . . . . Impact Weapon . | . . . . . . . . . . . . Slashing Weapon 2 | . . . . . . . . 2 . . . Piercing Weapon . | . . . . . . . . . . . . Special Melee Weapon 1 | . . . . . . 1 . . . . . Unidentified Prototypes 2 | . . . . . 2 . . . . . . Parts Lost 19 | . 6 . . . . 1 . 4 . 8 . Power 5 | . 1 . . . . 1 . 1 . 2 . Propulsion 6 | . 1 . . . . . . 1 . 4 . Utility 4 | . 1 . . . . . . 1 . 2 . Weapon 4 | . 3 . . . . . . 1 . . . Highest Loss Streak 6 | . 6 . . . . 1 . 3 . 4 . To Critical Strikes . | . . . . . . . . . . . . Average Backups 8 | . . 1 2 2 8 14 14 13 14 10 4 Power . | . . . . . . . . . 1 . . Propulsion 1 | . . . 1 1 3 3 . . . . . Utility 4 | . . 1 1 1 1 6 11 10 10 7 2 Weapon 1 | . . . . . 1 2 1 2 2 1 . Tool/Special . | . . . . . . . . . . . . Unused Backups 14 | . . . 1 . 3 4 1 1 . 2 2 Power . | . . . . . . . . . . . . Propulsion 4 | . . . . . 1 3 . . . . . Utility 6 | . . . 1 . . 1 . . . 2 2 Weapon 4 | . . . . . 2 . 1 1 . . . Tool/Special . | . . . . . . . . . . . . Average Slot Usage (%) 51 | . 97 6 14 14 57 71 92 94 99 63 6 Engine 2 | . 14 . . . . 2 9 4 7 1 . Core 2 | . . . . . 3 6 . 2 . 2 . Leg 8 | . 27 5 . . . . 30 35 30 16 . Flight 4 | . . 1 14 14 8 9 1 . . . . Device 5 | . . . . . 3 11 5 7 15 4 6 Storage 5 | . 14 . . . 8 9 9 9 7 6 . Processor 2 | . . . . . . . 9 11 15 8 . Hackware 4 | . . . . . 3 9 9 5 6 12 . Protection 3 | . 13 . . . 12 5 . . . . . Energy Cannon 6 | . . . . . 4 15 15 7 . . . Ballistic Gun 2 | . 26 . . . 6 . . 2 . 5 . Peak Build Rating 70 | 6 7 1 5 4 60 70 68 46 55 55 10 Average Rating 31 | 4 6 . 2 4 47 60 45 41 52 31 6 On Entrance 24 | . 6 2 1 4 4 60 68 46 45 55 2 Avg Prop Armor Cover (%) 7 | . . . . . . . . 7 . . . Naked Turns 1230 | . . 1190 . . 1 . . . . 27 12 Heaviest Build 50 | 14 22 . . . 44 50 46 48 50 39 3 Greatest Support 62 | 20 20 10 4 4 50 50 62 62 62 62 3 Greatest Overweight (x) 8 | . 1 . . . . . 3 1 . 8 . Average Overweight (x) . | . . . . . . . . . . . . Largest Inventory Capacity 15 | 8 10 5 15 5 15 15 15 15 15 15 5 Average Capacity 10 | 6 8 5 5 5 14 15 15 15 15 13 5 Most Carried 15 | . 1 4 5 5 15 15 15 15 15 15 5 Average Carried 8 | . . 1 4 5 8 14 14 13 14 10 4 Final Capacity 15 | 8 10 5 5 5 15 15 15 15 15 5 5 Final Carried 15 | . . 4 5 5 14 15 15 15 15 5 4 Class Distribution -------------------- 76% | Mutant 12% | Bothacker-Mutant 3% | Scavenger-Gladiator Dominant Class ---------------- Mutant | -10/Materials Mutant | -10/Mines Mutant | -10/Exiles Mutant | -9/Mines Mutant | -8/Materials Mutant | -8/Garrison Bothacker-Mutant | -8/Materials Bothacker-Mutant | -8/Garrison Bothacker-Gladiator | -7/Factory Bothacker-Mutant | -7/DSF Mutant | -7/Garrison Resources | -11 -10 -10 -10 -9 -8 -8 -8 -8 -7 -7 -7 ----------- Run | Yrd Mat Min Exi Min Mat Gar Mat Gar Fac DSF Gar Matter Collected 1999 | 224 158 107 . . 189 716 213 329 . 63 . Remotely . | . . . . . . . . . . . . Salvage Created 2160 | . 272 . . . 87 1066 292 397 25 21 . Parts 125 | . 21 . . . 4 58 13 24 4 1 . Haulers Intercepted 1 | . 1 . . . . . . . . . . Recyclers Shooed 2 | . 2 . . . . . . . . . . Parts Field Recycled . | . . . . . . . . . . . . Retrieved Matter . | . . . . . . . . . . . . Parts Self-Destructed . | . . . . . . . . . . . . Prevented . | . . . . . . . . . . . . Parts Restored . | . . . . . . . . . . . . Kills | -11 -10 -10 -10 -9 -8 -8 -8 -8 -7 -7 -7 ------- Run | Yrd Mat Min Exi Min Mat Gar Mat Gar Fac DSF Gar Combat Hostiles Destroyed 59 | . 7 . . . 2 30 6 13 . 1 . Melee 1 | . . . . . . . . . . 1 . Guns 9 | . 7 . . . . . . 2 . . . Cannons 34 | . . . . . 2 22 6 4 . . . AOE 14 | . . . . . . 8 . 6 . . . Classes Destroyed 10 | . 5 . . . 2 1 . 1 . 1 . Hauler 1 | . 1 . . . . . . . . . . Recycler 1 | . 1 . . . . . . . . . . Operator 2 | . . . . . 1 . . . 1 . . Watcher 4 | . 1 . . . . . 2 1 . . . Swarmer 24 | . 6 . . . . 12 2 4 . . . Cutter 1 | . . . . . . . . . . 1 . Grunt 22 | . 1 . . . . 14 3 4 . . . Brawler 2 | . . . . . . 1 . 1 . . . Sentry 7 | . . . . . 2 3 1 1 . . . Programmer 3 | . . . . . . . . 3 . . . Best Kill Streak 10 | . 6 . . . 1 4 2 10 1 1 . Combat Bots Only 9 | . 4 . . . 1 4 2 9 . 1 . Max Kills in Single Turn 4 | . 2 . . . 1 4 1 3 1 1 . Gunslinging 1 | . 1 . . . . . . . . . . Exploded 4 | . . . . . . 4 . 3 . . . Melee 1 | . . . . . . . . . . 1 . Uniques/NPCs Destroyed 1 | . . . . . . 1 . . . . . HV-R5K (-8/Garrison) Combat | -11 -10 -10 -10 -9 -8 -8 -8 -8 -7 -7 -7 -------- Run | Yrd Mat Min Exi Min Mat Gar Mat Gar Fac DSF Gar Hostile Shots Fired 432 | . 107 1 . 3 20 120 20 60 . 99 2 Missed 131 | . 25 . . 1 10 37 5 19 . 34 . Hits 301 | . 82 1 . 2 10 83 15 41 . 65 2 Melee 28 | . . 1 . . . . . . . 27 . Projectile 273 | . 82 . . 2 10 83 15 41 . 38 2 AOE 5 | . . . . . . . . . . 5 . Critical Strikes 21 | . 1 . . . . 2 1 . . 17 . Damage Taken 4113 | . 711 31 . 21 131 1085 182 572 . 1354 26 Core 1147 | . 125 31 . 21 12 175 . 74 . 683 26 Absorbed by Shields . | . . . . . . . . . . . . Core Remaining (%) 60 | 100 . . . 29 . . . 52 . . . Volleys Fired 246 | . 39 . . . 32 122 22 26 . 5 . Largest 2 | . 2 . . . 2 2 2 2 . 2 . Hottest 180 | . 100 . . . 60 180 180 180 . 56 . Shots Fired 437 | . 76 . . . 49 214 42 50 . 6 . Gun 100 | . 74 . . . 12 . . 12 . 2 . Cannon 299 | . . . . . 36 187 40 33 . 3 . Launcher 29 | . . . . . 1 25 . 3 . . . Special 9 | . 2 . . . . 2 2 2 . 1 . Kinetic 126 | . 74 . . . 38 . . 12 . 2 . Thermal 275 | . 2 . . . 10 187 40 33 . 3 . Explosive 29 | . . . . . 1 25 . 3 . . . Electromagnetic . | . . . . . . . . . . . . Robot Hit Streak 10 | . 7 . . . 9 10 7 5 . 4 . Robot Miss Streak 5 | . 5 . . . 4 5 4 4 . 4 . Penetration Max 1 | . . . . . . . . 1 . . . Secondary Targets 1 | . 1 . . . . . . . . . . Max Gunslinging Chain 1 | . 1 . . . . . . . . . . Shots Hit Robots 185 | . 39 . . . 20 69 23 27 1 6 . Core Hits 91 | . 15 1 . . 5 36 10 22 1 1 . Critical Kills 2 | . 1 . . . . . . 1 . . . Critical Parts Destroyed . | . . . . . . . . . . . . Critical Strikes 3 | . 1 . . . 1 . . 1 . . . Meltdown 1 | . . . . . . . . 1 . . . Destroy 1 | . 1 . . . . . . . . . . Blast 1 | . . . . . 1 . . . . . . Melee Attacks 11 | . . . . . . 1 . 4 1 5 . Impact . | . . . . . . . . . . . . Slashing 10 | . . . . . . . . 4 1 5 . Piercing . | . . . . . . . . . . . . Sneak Attacks 1 | . . . . . . 1 . . . . . Combat Hostiles . | . . . . . . . . . . . . Follow-up Attacks . | . . . . . . . . . . . . Damage Inflicted 5543 | . 577 9 . . 366 2458 674 1215 62 182 . Guns 824 | . 528 . . . 118 . . 178 . . . Cannons 3327 | . . . . . 242 1870 674 513 . 28 . Explosions 1118 | . . . . . 6 588 . 524 . . . Melee 216 | . . . . . . . . . 62 154 . Ramming 10 | . 1 9 . . . . . . . . . Kinetic 956 | . 528 . . . 250 . . 178 . . . Thermal 3243 | . 48 . . . 110 1870 674 513 . 28 . Explosive 1118 | . . . . . 6 588 . 524 . . . Electromagnetic . | . . . . . . . . . . . . Impact . | . . . . . . . . . . . . Slashing 216 | . . . . . . . . . 62 154 . Piercing . | . . . . . . . . . . . . Highest Corruption 1 | . . . . . . . . 1 . 1 1 Average Corruption 1 | . . . . . . . . 1 . 1 1 Corruption Purged . | . . . . . . . . . . . . Corruption Blocked . | . . . . . . . . . . . . Effects 11 | . . . . . . . . 6 . . 5 Message Errors 4 | . . . . . . . . 2 . . 2 Matter Fused 2 | . . . . . . . . 2 . . . Heat Flow Errors 1 | . . . . . . . . 1 . . . Energy Discharges 3 | . . . . . . . . 1 . . 2 Data Loss (major) 1 | . . . . . . . . . . . 1 Overload Shots 41 | . . . . . . 29 6 6 . . . Effects 3 | . . . . . . 3 . . . . . Energy Bleed 1 | . . . . . . 1 . . . . . Heat Surge 1 | . . . . . . 1 . . . . . Short Circuit 1 | . . . . . . 1 . . . . . Overflow Damage 138 | . . . . . 6 102 6 6 . 18 . Projectiles 100 | . . . . . 6 88 6 . . . . Explosions 20 | . . . . . . 14 . 6 . . . Melee 18 | . . . . . . . . . . 18 . Knockbacks . | . . . . . . . . . . . . Impact . | . . . . . . . . . . . . Kinetic . | . . . . . . . . . . . . Secondary . | . . . . . . . . . . . . Self-Inflicted Damage 42 | . . . . . . 42 . . . . . Shots 1 | . . . . . . 1 . . . . . Rammed . | . . . . . . . . . . . . Targets Rammed 8 | . 1 7 . . . . . . . . . Kicked 8 | . 1 7 . . . . . . . . . Crushed . | . . . . . . . . . . . . Highest Temperature 262 | . 88 . . . 100 244 198 262 . . . Average Temperature 69 | . 26 . . . 24 77 94 70 . . . Received Heat Transfer 855 | . 144 . . 12 36 402 81 144 . 36 . Effects 1 | . . . . . . 1 . . . . . Energy Bleed 1 | . . . . . . 1 . . . . . Siege Activations . | . . . . . . . . . . . . Martial Activations . | . . . . . . . . . . . . Shielding Activations . | . . . . . . . . . . . . Robots Disrupted . | . . . . . . . . . . . . Combat Hostiles . | . . . . . . . . . . . . Robots Corrupted . | . . . . . . . . . . . . Combat Hostiles . | . . . . . . . . . . . . Parts Fried . | . . . . . . . . . . . . Impact Corruptions . | . . . . . . . . . . . . Robots Melted 1 | . . . . . . . . 1 . . . Combat Hostiles 1 | . . . . . . . . 1 . . . Parts Melted 10 | . . . . . . 2 2 6 . . . Heat Transferred 4002 | . 100 . . . 148 2209 877 631 . 37 . Parts Sabotaged . | . . . . . . . . . . . . Parts Stolen . | . . . . . . . . . . . . Parts Stripped . | . . . . . . . . . . . . Power Chain Reactions . | . . . . . . . . . . . . Alert | -11 -10 -10 -10 -9 -8 -8 -8 -8 -7 -7 -7 ------- Run | Yrd Mat Min Exi Min Mat Gar Mat Gar Fac DSF Gar Maximum Alert Level 5 | . . . . . . 5 4 4 2 2 1 Low Security (%) 41 | 100 100 100 . 100 100 1 . . . . . Level 1 13 | . . . . . . 18 . . . 33 100 Level 2 8 | . . . . . . 17 . . 100 66 . Level 3 19 | . . . . . . 22 61 83 . . . Level 4 9 | . . . . . . 16 38 16 . . . Level 5 7 | . . . . . . 23 . . . . . High Security . | . . . . . . . . . . . . Max Security . | . . . . . . . . . . . . Peak Influence 2187 | . 107 . . . 172 2187 1158 1163 615 443 309 Initial 1066 | . . . . . . 68 1066 740 610 395 309 Average 536 | . 58 . . . 69 1001 1085 998 591 417 309 Influence Increases 3543 | . 224 . . . 231 2129 293 543 5 118 . Destroy 0b10 Robot/C 1600 | . 140 . . . 40 840 160 360 . 60 . Destroy 0b10 Robot/NC 45 | . 15 . . . 5 . 15 5 5 . . Destroy Leader 138 | . 24 . . . 20 20 44 20 . 10 . Allied During Kill 114 | . . . . . . 34 28 49 . 3 . Successful Hack 37 | . . . . . 2 21 . 14 . . . Disable Machine 90 | . . . . . 15 30 30 15 . . . Anti-Garrison Action 750 | . . . . . . 700 . 50 . . . Destroy Structure 304 | . . . . . 14 244 16 30 . . . Partial Spotted 15 | . . . . . . 15 . . . . . Lose Combat Pursuer 450 | . 45 . . . 135 225 . . . 45 . Influence Decreases 3234 | . 224 . . . 126 47 1341 519 603 270 104 Entered New Map 2384 | . . . . . . 37 1121 399 553 170 104 Time Decay 504 | . 188 . . . 126 . 140 . 50 . . Lost Part 166 | . 36 . . . . 10 . 40 . 80 . Lost Ally 180 | . . . . . . . 80 80 . 20 . Squads Dispatched 6 | . . . . . 2 . 1 . . 3 . Investigation . | . . . . . . . . . . . . Extermination . | . . . . . . . . . . . . Reinforcement 5 | . . . . . 1 . 1 . . 3 . Assault . | . . . . . . . . . . . . Garrison 1 | . . . . . 1 . . . . . . Intercept . | . . . . . . . . . . . . Searches Triggered . | . . . . . . . . . . . . Construction Impeded . | . . . . . . . . . . . . Haulers Reinforced . | . . . . . . . . . . . . Active Scanning Responses . | . . . . . . . . . . . . Cargo Convoy Interrupts . | . . . . . . . . . . . . Stealth | -11 -10 -10 -10 -9 -8 -8 -8 -8 -7 -7 -7 --------- Run | Yrd Mat Min Exi Min Mat Gar Mat Gar Fac DSF Gar Distress Signals 4 | . 2 . . . 1 . 1 . . . . Communications Jammed . | . . . . . . . . . . . . Distress Signals . | . . . . . . . . . . . . Times Spotted 128 | . 19 7 . 2 13 36 11 20 1 18 1 Peak Tracking Total 18 | . 7 18 . 2 5 8 3 8 . 10 . Tactical Retreats 12 | . 1 . . . 3 6 . . . 2 . Traps | -11 -10 -10 -10 -9 -8 -8 -8 -8 -7 -7 -7 ------- Run | Yrd Mat Min Exi Min Mat Gar Mat Gar Fac DSF Gar Traps Triggered 7 | . . . . . . 4 . 2 . 1 . Indirectly . | . . . . . . . . . . . . Trap Hack Attempts . | . . . . . . . . . . . . Triggered . | . . . . . . . . . . . . Disarmed . | . . . . . . . . . . . . Reprogrammed . | . . . . . . . . . . . . Reused . | . . . . . . . . . . . . Traps Extracted . | . . . . . . . . . . . . Installed . | . . . . . . . . . . . . Triggered . | . . . . . . . . . . . . Machines | -11 -10 -10 -10 -9 -8 -8 -8 -8 -7 -7 -7 ---------- Run | Yrd Mat Min Exi Min Mat Gar Mat Gar Fac DSF Gar Machines Disabled 12 | . . . . . 1 7 2 2 . . . Max in Single Turn 1 | . . . . . 1 1 1 1 . . . Garrison Relay 5 | . . . . . . 4 . 1 . . . Machines Repaired . | . . . . . . . . . . . . Machines Dismantled . | . . . . . . . . . . . . Machines Sabotaged . | . . . . . . . . . . . . Overloaded Fab Kills . | . . . . . . . . . . . . Hacking | -11 -10 -10 -10 -9 -8 -8 -8 -8 -7 -7 -7 --------- Run | Yrd Mat Min Exi Min Mat Gar Mat Gar Fac DSF Gar Machines Accessed 18 | . 2 . 2 . 4 4 2 1 2 . 1 Terminals 12 | . 1 . . . 2 4 1 1 2 . 1 Fabricators . | . . . . . . . . . . . . Repair Stations . | . . . . . . . . . . . . Recycling Units 1 | . 1 . . . . . . . . . . Scanalyzers 1 | . . . . . 1 . . . . . . Garrison Access 2 | . . . . . 1 . 1 . . . . Total Hacks 32 | . 4 . 5 . 9 6 3 1 2 . 2 Successful 18 | . 1 . 5 . 7 2 1 1 1 . . Failed 14 | . 3 . . . 2 4 2 . 1 . 2 Catastrophic 4 | . 1 . . . . 2 1 . . . . Database Lockouts . | . . . . . . . . . . . . Manual 6 | . 2 . 1 . 2 1 . . . . . Terminals 19 | . 2 . . . 4 6 2 1 2 . 2 Fabricators . | . . . . . . . . . . . . Repair Stations . | . . . . . . . . . . . . Recycling Units 2 | . 2 . . . . . . . . . . Scanalyzers 4 | . . . . . 4 . . . . . . Garrison Access 2 | . . . . . 1 . 1 . . . . Terminal Hacks 12 | . 1 . 5 . 2 2 . 1 1 . . Record 4 | . . . 4 . . . . . . . . Open Door 1 | . . . . . . 1 . . . . . Open DSF 1 | . . . . . . . . . 1 . . Emergency Access Points 1 | . . . . . . . . 1 . . . Locate Traps 1 | . . . . . 1 . . . . . . Registered Components 2 | . 1 . . . 1 . . . . . . Garrison Registry 1 | . . . . . . 1 . . . . . Proto ID Catalog 1 | . . . 1 . . . . . . . . Fabricator Hacks . | . . . . . . . . . . . . Repair Station Hacks . | . . . . . . . . . . . . Recycling Unit Hacks . | . . . . . . . . . . . . Scanalyzer 4 | . . . . . 4 . . . . . . Retrieve Study 4 | . . . . . 4 . . . . . . Garrison Access Hacks 2 | . . . . . 1 . 1 . . . . Unlock Access 2 | . . . . . 1 . 1 . . . . Unauthorized Hacks . | . . . . . . . . . . . . Terminals . | . . . . . . . . . . . . Fabricators . | . . . . . . . . . . . . Repair Stations . | . . . . . . . . . . . . Recycling Units . | . . . . . . . . . . . . Scanalyzers . | . . . . . . . . . . . . Garrison Access . | . . . . . . . . . . . . Data Cores Recovered 1 | . . . . . . . . . 1 . . Used 1 | . . . . . . . . . 1 . . Hacking Detections 12 | . 2 . . . 2 4 1 1 1 . 1 Full Trace Events . | . . . . . . . . . . . . Feedback Events . | . . . . . . . . . . . . Feedback Blocked . | . . . . . . . . . . . . Robot Schematics Acquired . | . . . . . . . . . . . . Robots Built . | . . . . . . . . . . . . Authchips . | . . . . . . . . . . . . Time . | . . . . . . . . . . . . Total Robot Build Rating . | . . . . . . . . . . . . Part Schematics Acquired . | . . . . . . . . . . . . Parts Built . | . . . . . . . . . . . . Authchips . | . . . . . . . . . . . . Time . | . . . . . . . . . . . . Total Part Build Rating . | . . . . . . . . . . . . Part Studies Acquired 4 | . . . . . 4 . . . . . . Parts Repaired . | . . . . . . . . . . . . Time . | . . . . . . . . . . . . Parts Recycled . | . . . . . . . . . . . . Recycled Matter . | . . . . . . . . . . . . Retrieved Matter . | . . . . . . . . . . . . Retrieved Components . | . . . . . . . . . . . . Parts Scanalyzed . | . . . . . . . . . . . . Part Schematics Acquired . | . . . . . . . . . . . . Parts Damaged . | . . . . . . . . . . . . Bothacking | -11 -10 -10 -10 -9 -8 -8 -8 -8 -7 -7 -7 ------------ Run | Yrd Mat Min Exi Min Mat Gar Mat Gar Fac DSF Gar Used RIF Installer 2 | . . . . . . 1 . 1 . . . Program Shield 1 | . . . . . . . . 1 . . . Robots Hacked 7 | . . . . . . 3 1 2 . 1 . Non-combat . | . . . . . . . . . . . . Combat 7 | . . . . . . 3 1 2 . 1 . Robot Hacks Applied 7 | . . . . . . 3 1 2 . 1 . parse_system 1 | . . . . . . 1 . . . . . formatsys_high 6 | . . . . . . 2 1 2 . 1 . Relay Couplers Released 21 | . . . . . . 16 . 5 . . . Machine Destruction 21 | . . . . . . 16 . 5 . . . Attached 5 | . . . . . . 1 1 1 1 1 . Fabnet Peak Effective % . | . . . . . . . . . . . . Robots Rewired 5 | . . . . . . 3 . 2 . . . Allies Hacked . | . . . . . . . . . . . . Hacks Repelled . | . . . . . . . . . . . . Allies | -11 -10 -10 -10 -9 -8 -8 -8 -8 -7 -7 -7 -------- Run | Yrd Mat Min Exi Min Mat Gar Mat Gar Fac DSF Gar Total Allies 12 | . . . . . . 6 1 4 . 1 . Largest Group 5 | . . . . . . 5 5 4 . 1 . Highest-Rated Group 149 | . . . . . . 149 100 75 . 24 . Highest-Rated Ally 149 | . . . . . . 149 21 25 . 24 . Total Orders 2 | . . . . . . . . 2 . . . STAY 1 | . . . . . . . . 1 . . . FOLLOW 1 | . . . . . . . . 1 . . . Ally Attacks 85 | . . . . . . 19 48 16 . 2 . Total Damage 2447 | . . . . . . 1281 650 463 . 53 . Kills 24 | . . . . . . 12 5 5 . 2 . Allies Corrupted . | . . . . . . . . . . . . Allies Melted . | . . . . . . . . . . . . Intel | -11 -10 -10 -10 -9 -8 -8 -8 -8 -7 -7 -7 ------- Run | Yrd Mat Min Exi Min Mat Gar Mat Gar Fac DSF Gar Active Infowar (turns) 3005 | . . . . . 168 1782 105 358 105 . 487 Traps 3005 | . . . . . 168 1782 105 358 105 . 487 Robot Analysis Total . | . . . . . . . . . . . . Derelict Logs Recovered 3 | . . 2 . 1 . . . . . . . Drone Launches . | . . . . . . . . . . . . Drone Recoveries . | . . . . . . . . . . . . Exploration | -11 -10 -10 -10 -9 -8 -8 -8 -8 -7 -7 -7 ------------- Run | Yrd Mat Min Exi Min Mat Gar Mat Gar Fac DSF Gar Turns Passed 7504 | 47 416 2077 179 8 432 2445 288 826 108 172 506 Spaces Moved 5026 | 36 167 570 434 19 545 2324 170 418 78 99 166 Core 408 | 7 . 179 . . . . . . . 56 166 Treads . | . . . . . . . . . . . . Legs 879 | 29 167 23 . . . . 121 418 78 43 . Wheels . | . . . . . . . . . . . . Hover . | . . . . . . . . . . . . Flight 3739 | . . 368 434 19 545 2324 49 . . . . Fastest Speed 40 | 50 120 40 40 40 50 50 50 120 122 50 50 Average Speed 62 | 106 143 46 40 40 50 50 100 125 122 99 50 Slowest Speed 450 | 120 190 120 40 40 50 50 360 190 122 450 50 Overloaded Moves . | . . . . . . . . . . . . Propulsion Burnouts . | . . . . . . . . . . . . Robots Hopped . | . . . . . . . . . . . . Potential Cave-ins . | . . . . . . . . . . . . Cave-ins Triggered . | . . . . . . . . . . . . Exploration Rate (%) 45 | 3 33 99 88 9 49 95 21 46 3 84 12 Regions Visited 11 Branch Regions 3 Pre-discovered Areas . | . . . . . . . . . . . . Known Exits Taken 3 | . . . . . 1 . 1 . 1 . . Unknown Exits Taken 5 | 1 1 1 1 1 . . . . . . . Scrap Searched 3 | . . 2 . 1 . . . . . . . Spaces Dug 3 | . . . . . 3 . . . . . . Terrain Destroyed 391 | . . . . . 14 343 14 20 . . . Melee . | . . . . . . . . . . . . Projectile 37 | . . . . . 7 14 14 2 . . . AOE 354 | . . . . . 7 329 . 18 . . . Terrain Rammed . | . . . . . . . . . . . . Walls Destroyed . | . . . . . . . . . . . . Machines Disabled . | . . . . . . . . . . . . Actions | -11 -10 -10 -10 -9 -8 -8 -8 -8 -7 -7 -7 --------- Run | Yrd Mat Min Exi Min Mat Gar Mat Gar Fac DSF Gar Total 8924 | 41 263 2381 440 18 654 3385 245 662 88 157 590 Wait 2768 | . 52 1250 . . 29 800 28 166 . 24 419 Move 5014 | 35 166 569 433 18 544 2321 170 417 77 98 166 Hop . | . . . . . . . . . . . . Pick Up 57 | . 1 1 1 . 23 15 3 7 3 3 . Fast Attach 32 | 6 1 2 1 . 7 2 4 3 . 6 . Attach 29 | . 1 1 . . 3 4 1 4 2 10 3 Detach 17 | . . 4 1 . . 4 . 2 . 4 2 Swap 62 | . 1 . . . 5 26 11 13 4 2 . Drop 46 | . 1 . 4 . 11 16 6 7 1 . . Fire 246 | . 39 . . . 32 122 22 26 . 5 . Melee 11 | . . . . . . 1 . 4 1 5 . Ram . | . . . . . . . . . . . . Kick 8 | . 1 7 . . . . . . . . . Crush . | . . . . . . . . . . . . Escape Stasis 46 | . . . . . . 41 . 5 . . . Rewire 588 | . . 547 . . . 33 . 8 . . . Trap . | . . . . . . . . . . . . Miscellaneous . | . . . . . . . . . . . . Route ------- -11/Scrapyard -10/Materials -10/Mines (discovered 3 exits: [*Mat x2] / *Exi) -10/Exiles -9/Mines -8/Materials (discovered 2 exits: *Fac / Gar) -8/Garrison (discovered 4 exits: *Mat x4) -8/Materials -8/Garrison -7/Factory -7/DSF -7/Garrison History --------- Turn | Location | Event 3 | -11/Scrapyard | Discovered new exit (range 15) 48 | -11/Scrapyard | Entered Materials 305 | -10/Materials | Build established: Mutant 400 | -10/Materials | Discovered new exit (range 7) 464 | -10/Materials | Entered Mines 467 | -10/Mines | Assembled infested the area 491 | -10/Mines | Lost 6 parts (1p1n1u3w) 499 | -10/Mines | Core integrity fell below 50% 2397 | -10/Mines | Discovered new exit (range 10) 2494 | -10/Mines | Discovered new exit (range 5) 2512 | -10/Mines | Discovered new exit (range 5) 2516 | -10/Mines | Learned Materials emergency access door positions 2541 | -10/Mines | Entered Exiles 2551 | -10/Exiles | Met 8R-AWN 2558 | -10/Exiles | Met EX-HEX 2569 | -10/Exiles | Met EX-BIN 2574 | -10/Exiles | Aligned with FarCom system 2574 | -10/Exiles | Given EX-Vault access code 2584 | -10/Exiles | Opened EX-Vault 2606 | -10/Exiles | Found Flying Fortress v7 2615 | -10/Exiles | Warned to stay clear of 0b10 Research branches 2626 | -10/Exiles | Met EX-DEC 2654 | -10/Exiles | Visited The Gauntlet 2716 | -10/Exiles | Discovered new exit (range 10) 2720 | -10/Exiles | Left Exiles lab with Flying Fortress v7 2720 | -10/Exiles | Entered Mines 2720 | -9/Mines | Discovered new exit (range 9) 2725 | -9/Mines | Learned 2 Materials zone layouts 2728 | -9/Mines | Entered Materials 2728 | -8/Materials | Evolved 4 slots: Propulsion x2, Utility x2 3013 | -8/Materials | Discovered new exit (range 12) 3145 | -8/Materials | Garrison activated, responded to threat 3158 | -8/Materials | Identified exit to Garrison 3160 | -8/Materials | Entered Garrison 3346 | -8/Garrison | Triggered checkpoint 3493 | -8/Garrison | Discovered new exit (range 10) 3580 | -8/Garrison | Triggered checkpoint 3616 | -8/Garrison | Triggered checkpoint 3728 | -8/Garrison | Discovered new exit (range 15) 3781 | -8/Garrison | Garrison Relay disabled 3992 | -8/Garrison | Discovered new exit (range 12) 4001 | -8/Garrison | Spotted B-75 Beast 4001 | -8/Garrison | Attempted to access garrison exit controls, blocked by remote lockdown 4040 | -8/Garrison | Triggered checkpoint 4414 | -8/Garrison | Triggered checkpoint 4503 | -8/Garrison | Discovered new exit (range 6) 4546 | -8/Garrison | Garrison Relay disabled 4620 | -8/Garrison | Triggered checkpoint 4701 | -8/Garrison | Rescued HV-R5K 4908 | -8/Garrison | Triggered checkpoint 4930 | -8/Garrison | Triggered checkpoint 5048 | -8/Garrison | Triggered checkpoint 5090 | -8/Garrison | Allies destroyed B-75 Beast 5133 | -8/Garrison | Installed Relay Interface Framework 5204 | -8/Garrison | Murdered HV-R5K 5258 | -8/Garrison | Garrison Relay disabled 5389 | -8/Garrison | Discovered new exit (range 26) 5389 | -8/Garrison | Discovered new exit (range 31) 5389 | -8/Garrison | Discovered new exit (range 55) 5389 | -8/Garrison | Discovered new exit (range 45) 5605 | -8/Garrison | Entered Materials 5605 | -8/Materials | Accompanied by 5 allies 5797 | -8/Materials | Lost 4 allies 5852 | -8/Materials | Build established: Bothacker-Mutant 5893 | -8/Materials | Identified exit to Garrison 5893 | -8/Materials | Entered Garrison 6035 | -8/Garrison | Destroyed 9 combat bots 6052 | -8/Garrison | Lost 3 parts (1p1n1w) 6155 | -8/Garrison | Triggered checkpoint 6155 | -8/Garrison | Triggered checkpoint 6183 | -8/Garrison | Triggered checkpoint 6264 | -8/Garrison | Expanded RIF knowledge: Program Shield 6435 | -8/Garrison | Lost 4 allies 6625 | -8/Garrison | Discovered new exit (range 9) 6682 | -8/Garrison | Garrison Relay disabled 6719 | -8/Garrison | Entered Factory 6719 | -7/Factory | Evolved 2 slots: Utility x2 6824 | -7/Factory | Identified exit to DSF 6827 | -7/Factory | Entered DSF 6849 | -7/DSF | Additional patrols routed to DSF 6891 | -7/DSF | Lost 4 parts (1p1n2u) 6972 | -7/DSF | Released all parts (6) 6979 | -7/DSF | Core integrity fell below 50% 6991 | -7/DSF | Core integrity fell below 20% 6993 | -7/DSF | Discovered new exit (range 14) 6999 | -7/DSF | Entered Garrison 7002 | -7/Garrison | Lost 4 parts (1p3n) 7262 | -7/Garrison | Build established: Mutant 7505 | -7/Garrison | Triggered checkpoint 7505 | -7/Garrison | Destroyed by X-57 Shotgunner with High-powered Shotgun Last Messages --------------- 06987_ Knocked back. 06987_ A-02 Transporter system corrupted by crushing effect. 06987_ Acquired 7 matter. 06993_ EXIT=FOUND 06993_ Knocked back. 06993_ C-17 Slicer knocked back. LOCATION=UNKNOWN GOAL=ESCAPE 06999_ Receiving FarCom transmissions... 07027_ Connecting with Garrison Terminal... 07027_ Current location identified: Garrison 07230_ N|PQE<>6 WPVD